{"text_format":"1","workbook":"xlsx","n_sheets":4,"sheets":["お読みください","入力画面","出力画面","保存画面"],"not_rendered":{"charts":0,"images":0,"macros":1,"external_links":0,"defined_names":0,"comments":0,"pivot_tables":0},"unopened":[],"bounds":{"document_bytes":16777216,"sheet_cells":100000,"rows_first":2000,"rows_last":500,"rows_between":2000,"halvings":0,"cell_chars":16384,"cell_head_chars":4096},"cells_cut":0,"cells_raw":0,"read":"whole","date_system":"1900"}

{"sheet":"お読みください","index":0,"n_rows":27,"n_cols":2,"rows_kept":27,"cut":false,"hidden":false,"merged":[]}
["このファイルは、様式1報告を岡山県病院薬剤師会を通して日病薬に報告するためのものです。"]
["【入力画面】について"]
["項目を記載してください。"]
[null,"のセルは、フリーワードで入力できます。改行する際は、windowsの場合は「Alt+Enter」をお使いください。"]
[null,"のセルは、入力制限がかかっています。必要なものを選択してください。"]
[null,"のセルは、チェックボックスになっています。該当の際は、クリックしてください。"]
["赤文字の項目は入力必須の項目です。未記載な項目があればプレアボイド報告が行われません。注意してください。"]
["L列は、入力制限のためのキーワードです。この列は削除したり改変したりしないでください。"]
["入力が終わったら、「登録」ボタンを押ししてください。"]
["「登録」ボタンを押すと【保存画面】に登録されたのち、入力した項目が消えます。施設名や報告者氏名などはそのままです。報告者が変わるときは、修正してください。"]
["必須項目に関するエラーメッセージがでますので、問題がなければ「OK」を選んでください。"]
[]
["【出力画面】について"]
["エクセル処理用のシートです。何も作業はしないでください。"]
[]
["【保存画面】について"]
["「登録」されたプレアボイドが保存されます。"]
["岡山県病院薬剤師会には、このシート【保存画面】を報告することになります。"]
["入力画面で何も入力されていない場合には、「0」として表示されます。"]
["もし削除する場合は、このシート【保存画面】の行を直接選択して削除してください。"]
[]
["その他"]
["必要な箇所は、シートの保護がされています。"]
[]
["ご不明な点等ありましたら、"]
["oka-pre@okayama-u.ac.jp"]
["までご連絡ください"]

{"sheet":"入力画面","index":1,"n_rows":71,"n_cols":12,"rows_kept":71,"cut":false,"hidden":false,"merged":[[15,5,15,6],[2,7,2,8],[3,7,3,8],[4,7,4,9],[6,1,6,2],[12,1,12,2],[38,1,38,3],[38,6,38,7],[38,8,38,9],[16,8,16,9],[18,4,18,5],[18,6,18,9],[22,6,22,9],[23,2,23,5],[23,7,23,9],[25,1,33,9],[34,2,34,3],[34,6,34,9],[35,6,35,9],[36,6,36,9],[39,1,39,3],[39,6,39,7],[39,8,39,9],[40,1,40,3],[40,6,40,7],[40,8,40,9],[52,5,52,9],[41,1,41,3],[41,6,41,7],[41,8,41,9],[43,1,47,9],[48,2,48,6],[48,7,48,8],[49,2,49,6],[49,7,50,7],[49,8,50,9],[51,4,51,6],[51,8,51,9],[54,1,54,2],[55,1,58,9],[59,1,59,5],[60,1,63,9],[64,2,64,5],[64,8,64,9],[70,2,70,3],[70,5,70,9],[65,8,65,9],[66,2,66,3],[67,2,67,3],[67,6,67,7],[67,8,69,9],[68,2,68,6],[69,2,69,5]]}
[null,null,"プレアボイド報告書（重篤化回避報告）　様式１（入力用）ver1.0"]
[]
[null,null,"性別","年齢(年)","年齢(月)","妊娠","職業","喫煙(有,又は本/日)",null,"外来／入院",null,"男"]
[null,null,null,null,null,null,null,null,null,null,null,"女"]
[null,null,null,"↑歳代","↑１歳未満のみ",null,"飲酒(種類／1日量)"]
[null,null,"身長cm",null,"体重kg",null,null,null,"関与した薬剤師の担当",null,null,"有"]
[null,"副作用の発見者",null,null,null,"副作用の端緒",null,null,null,"薬剤管理指導業務",null,"無"]
[null,null,"医師",null,null,null,"初期症状指導による患者の訴え",null,null,"外来調剤"]
[null,null,"薬剤師",null,null,null,"上記以外の患者の訴え",null,null,"注射せん調剤",null,"外来患者"]
[null,null,"看護師",null,null,null,"薬歴",null,null,"医薬品情報",null,"入院患者"]
[null,null,"その他",null,null,null,"TDM",null,null,"無菌製剤"]
[null,"その他の発見者",null,null,null,null,"検査値",null,null,"入院調剤",null,"✓"]
[null,null,null,null,null,null,"フィジカルアセスメント",null,null,"製剤"]
[null,null,null,null,null,null,"その他",null,null,"TDM"]
[null,null,null,null,null,"その他の端緒",null,null,null,"その他",null,"禁忌"]
[null,null,null,null,null,null,null,null,"その他の薬剤師の担当",null,null,"慎重"]
[null,null,null,null,null,null,null,null,null,null,null,"食物"]
[null,"薬学的管理の種類（いずれか１つ選択）",null,null,null,null,null,null,null,null,null,"その他"]
[null,null,"副作用",null,"副作用名："]
[null,null,"相互作用",null,"相互作用種類：",null,null,null,null,null,null,"投与禁忌"]
[null,null,"患者との関連",null,"患者関連：",null,null,null,null,null,null,"慎重投与"]
[null,null,"その他",null,"その他の内容：",null,null,null,null,null,null,"その他"]
[null,null,null,null,"その他のその他："]
[null,"発現年月日",null,null,null,null,"発見年月日"]
[null,"経過","改行は「Alt＋Enter」",null,null,null,null,null,null,null,null,"用法用量"]
[null,null,null,null,null,null,null,null,null,null,null,"誤転記・誤入力"]
[null,null,null,null,null,null,null,null,null,null,null,"重複投与"]
[null,null,null,null,null,null,null,null,null,null,null,"同種薬投与"]
[null,null,null,null,null,null,null,null,null,null,null,"その他"]
[]
[null,null,null,null,null,null,null,null,null,null,null,"回復"]
[null,null,null,null,null,null,null,null,null,null,null,"軽快"]
[null,null,null,null,null,null,null,null,null,null,null,"未回復"]
[null,null,null,null,null,null,null,null,null,null,null,"死亡"]
[null,"転帰",null,null,null,"後遺症",null,null,null,null,null,"後遺症有"]
[null,null,null,null,null,"その他",null,null,null,null,null,"その他"]
[null,null,null,"不明・該当しない理由",null,null,null,null,null,null,null,"不明・該当せず"]
[]
[null,"被疑薬",null,null,"投与経路","１日量","使用期間",null,"使用目的",null,null,"内服"]
[null,null,null,null,null,null,null,null,null,null,null,"点滴"]
[null,null,null,null,null,null,null,null,null,null,null,"静注"]
[null,null,null,null,null,null,null,null,null,null,null,"持続静注"]
[null,"併用薬　投与経路　1日量　使用期間　使用目的",null,null,null,null,null,null,null,null,null,"TPN"]
[null,null,null,null,null,null,null,null,null,null,null,"筋注"]
[null,null,null,null,null,null,null,null,null,null,null,"皮下注"]
[null,null,null,null,null,null,null,null,null,null,null,"坐薬"]
[null,null,null,null,null,null,null,null,null,null,null,"貼付"]
[null,null,null,null,null,null,null,null,null,null,null,"点眼"]
[null,"原疾患",null,null,null,null,null,"原疾患治療開始日",null,null,null,"経管栄養"]
[null,"合併症",null,null,null,null,null,"他の既往歴",null,null,null,"その他"]
[null,"肝障害",null,"腎障害"]
[null,"副作用歴",null,"薬剤名→",null,null,null,"副作用名",null,null,null,"明らかに関連有り"]
[null,"アレルギー",null,null,"薬剤名・症状→",null,null,null,null,null,null,"多分関連有り"]
[null,null,null,null,null,null,null,null,null,null,null,"関連ないとも言えない"]
[null,"薬剤師のコメント",null,null,null,null,null,null,null,null,null,"関連なし"]
[null,null,null,null,null,null,null,null,null,null,null,"評価材料不足"]
[]
[null,null,null,null,null,null,null,null,null,null,null,"済"]
[null,null,null,null,null,null,null,null,null,null,null,"予定"]
[null,"薬学的ケアによる具体的成果・アウトカム",null,null,null,null,null,null,null,null,null,"無"]
[]
[]
[]
[]
[null,"因果関係",null,null,null,null,null,"厚生労働省安全性情報報告"]
[null,null,null,null,null,null,null,"副作用被害救済機構申請"]
[null,"報告者氏名",null,null,null,"報告日",{"$f":"TODAY()","v":"2018-01-31"},null,"備考・追加等"]
[null,"TEL",null,null,null,"FAX"]
[null,"e-mail"]
[null,"報告施設名"]
[null,"都道府県",null,null,"住所"]

{"sheet":"出力画面","index":2,"n_rows":2,"n_cols":87,"rows_kept":2,"cut":false,"hidden":false,"merged":[]}
["施設名","都道府県","住所","電話番号","FAX番号","氏名","e-mail","初回登録日","最終更新日","性別","身長","体重","年齢","月齢","妊娠","飲酒","喫煙","職業","外来／入院","発見者：医師","発見者：薬剤師","発見者：看護師","発見者：その他","発見者：その他（詳細）","初期症状指導による患者の訴え","上記以外の患者の訴え","薬歴","TDM","検査値","フィジカルアセスメント","その他","その他（詳細）","関与した薬剤師の担当：薬剤管理指導業務","関与した薬剤師の担当：外来調剤","関与した薬剤師の担当：注射せん調剤","関与した薬剤師の担当：医薬品情報","関与した薬剤師の担当：無菌製剤","関与した薬剤師の担当：入院調剤","関与した薬剤師の担当：製剤","関与した薬剤師の担当：TDM","関与した薬剤師の担当：その他","関与した薬剤師の担当：その他（内容）","副作用名","相互作用","患者との関連","その他","その他（詳細）","発現年月日","発見年月日","経過","転帰","後遺症","その他","不明・該当せず","被疑薬1","被疑薬1：投与経路","被疑薬1：1日量","被疑薬1：使用期間","被疑薬1：使用目的","被疑薬2","被疑薬2：投与経路","被疑薬2：1日量","被疑薬2：使用期間","被疑薬2：使用目的","被疑薬3","被疑薬3：投与経路","被疑薬3：1日量","被疑薬3：使用期間","被疑薬3：使用目的","併用薬の薬歴","原疾患","原疾患：治療開始日","合併症","既往症：肝機能障害","既往症：腎機能障害","既往症：その他","副作用歴","副作用歴：薬剤名","副作用歴：副作用名","アレルギー歴","アレルギー歴：薬剤名","薬剤師のコメント","薬剤師関与による具体的効果","因果関係","厚労省安全性情報報告","副作用被害救済機構申請","備考・追加など"]
[{"$f":"入力画面!C70","v":0},{"$f":"入力画面!C71","v":0},{"$f":"入力画面!F71","v":0},{"$f":"入力画面!C68","v":0},{"$f":"入力画面!G68","v":0},{"$f":"入力画面!C67","v":0},{"$f":"入力画面!C69","v":0},{"$f":"入力画面!H24","v":"00:00:00"},{"$f":"入力画面!G67","v":"2018-01-31"},{"$f":"入力画面!C4","v":0},{"$f":"入力画面!D6","v":0},{"$f":"入力画面!F6","v":0},{"$f":"入力画面!D4","v":0},{"$f":"入力画面!E4","v":0},{"$f":"入力画面!F4","v":0},{"$f":"入力画面!H5","v":0},{"$f":"入力画面!H4","v":0},{"$f":"入力画面!G4","v":0},{"$f":"入力画面!J4","v":0},{"$f":"IF(入力画面!B8=TRUE,1,\"\")","v":""},{"$f":"IF(入力画面!B9=TRUE,1,\"\")","v":""},{"$f":"IF(入力画面!B10=TRUE,1,\"\")","v":""},{"$f":"IF(入力画面!B11=TRUE,1,\"\")","v":""},{"$f":"入力画面!B13","v":0},{"$f":"IF(入力画面!F8=TRUE,1,\"\")","v":""},{"$f":"IF(入力画面!F9=TRUE,1,\"\")","v":""},{"$f":"IF(入力画面!F10 =TRUE,1,\"\")","v":""},{"$f":"IF(入力画面!F11=TRUE,1,\"\")","v":""},{"$f":"IF(入力画面!F12=TRUE,1,\"\")","v":""},{"$f":"IF(入力画面!F13=TRUE,1,\"\")","v":""},{"$f":"IF(入力画面!F14=TRUE,1,\"\")","v":""},{"$f":"入力画面!F16","v":0},{"$f":"IF(入力画面!I7=TRUE,1,\"\")","v":""},{"$f":"IF(入力画面!I8=TRUE,1,\"\")","v":""},{"$f":"IF(入力画面!I9=TRUE,1,\"\")","v":""},{"$f":"IF(入力画面!I10=TRUE,1,\"\")","v":""},{"$f":"IF(入力画面!I11=TRUE,1,\"\")","v":""},{"$f":"IF(入力画面!I12=TRUE,1,\"\")","v":""},{"$f":"IF(入力画面!I13=TRUE,1,\"\")","v":""},{"$f":"IF(入力画面!I14=TRUE,1,\"\")","v":""},{"$f":"IF(入力画面!I15=TRUE,1,\"\")","v":""},{"$f":"入力画面!I17","v":0},{"$f":"入力画面!G19","v":0},{"$f":"入力画面!G20","v":0},{"$f":"入力画面!G21","v":0},{"$f":"入力画面!G22","v":0},{"$f":"入力画面!G23","v":0},{"$f":"入力画面!C24","v":"00:00:00"},{"$f":"入力画面!H24","v":"00:00:00"},{"$f":"入力画面!B26","v":0},{"$f":"入力画面!C35","v":0},{"$f":"入力画面!G35","v":0},{"$f":"入力画面!G36","v":0},{"$f":"入力画面!G37","v":0},{"$f":"入力画面!B40","v":0},{"$f":"入力画面!E40","v":0},{"$f":"入力画面!F40","v":0},{"$f":"入力画面!G40","v":"00:00:00"},{"$f":"入力画面!I40","v":0},{"$f":"入力画面!B41","v":0},{"$f":"入力画面!E41","v":0},{"$f":"入力画面!F41","v":0},{"$f":"入力画面!G41","v":"00:00:00"},{"$f":"入力画面!I41","v":0},{"$f":"入力画面!B42","v":0},{"$f":"入力画面!E42","v":0},{"$f":"入力画面!F42","v":0},{"$f":"入力画面!G42","v":0},{"$f":"入力画面!I42","v":0},{"$f":"入力画面!B44","v":0},{"$f":"入力画面!C49","v":0},{"$f":"入力画面!J49","v":"00:00:00"},{"$f":"入力画面!C50","v":0},{"$f":"入力画面!C51","v":0},{"$f":"入力画面!E51","v":0},{"$f":"入力画面!I50","v":0},{"$f":"入力画面!C52","v":0},{"$f":"入力画面!E52","v":0},{"$f":"入力画面!I52","v":0},{"$f":"入力画面!C53","v":0},{"$f":"入力画面!F53","v":0},{"$f":"入力画面!B56","v":0},{"$f":"入力画面!B61","v":0},{"$f":"入力画面!C65","v":0},{"$f":"入力画面!I65","v":0},{"$f":"入力画面!I66","v":0},{"$f":"入力画面!I68","v":0}]

{"sheet":"保存画面","index":3,"n_rows":1,"n_cols":87,"rows_kept":1,"cut":false,"hidden":false,"merged":[]}
["施設名","都道府県","住所","電話番号","FAX番号","氏名","e-mail","初回登録日","最終更新日","性別","身長","体重","年齢","月齢","妊娠","飲酒","喫煙","職業","外来／入院","発見者：医師","発見者：薬剤師","発見者：看護師","発見者：その他","発見者：その他（詳細）","初期症状指導による患者の訴え","上記以外の患者の訴え","薬歴","TDM","検査値","フィジカルアセスメント","その他","その他（詳細）","関与した薬剤師の担当：薬剤管理指導業務","関与した薬剤師の担当：外来調剤","関与した薬剤師の担当：注射せん調剤","関与した薬剤師の担当：医薬品情報","関与した薬剤師の担当：無菌製剤","関与した薬剤師の担当：入院調剤","関与した薬剤師の担当：製剤","関与した薬剤師の担当：TDM","関与した薬剤師の担当：その他","関与した薬剤師の担当：その他（内容）","副作用名","相互作用","患者との関連","その他","その他（詳細）","発現年月日","発見年月日","経過","転帰","後遺症","その他","不明・該当せず","被疑薬1","被疑薬1：投与経路","被疑薬1：1日量","被疑薬1：使用期間","被疑薬1：使用目的","被疑薬2","被疑薬2：投与経路","被疑薬2：1日量","被疑薬2：使用期間","被疑薬2：使用目的","被疑薬3","被疑薬3：投与経路","被疑薬3：1日量","被疑薬3：使用期間","被疑薬3：使用目的","併用薬の薬歴","原疾患","原疾患：治療開始日","合併症","既往症：肝機能障害","既往症：腎機能障害","既往症：その他","副作用歴","副作用歴：薬剤名","副作用歴：副作用名","アレルギー歴","アレルギー歴：薬剤名","薬剤師のコメント","薬剤師関与による具体的効果","因果関係","厚労省安全性情報報告","副作用被害救済機構申請","備考・追加など"]